[Event "Warsaw Chess Open-B 2022"]
[Site "Warsaw"]
[Date "2022.07.20"]
[Round "3.2"]
[White "Kowalczyk, Adam"]
[Black "Kuczewski, Filip"]
[Result "1-0"]
[ECO "B51"]
[WhiteElo "1944"]
[BlackElo "1694"]
[Annotator "TA"]
[PlyCount "161"]
[EventDate "2022.07.18"]
[EventType "swiss"]
[EventCountry "POL"]
[SourceTitle "playchess.com"]
[Source "ChessBase"]
[SourceQuality "1"]
[TimeControl "40/5400+30:1800+30"]

{[%evp 9,161,43,48,25,37,33,54,17,0,5,8,12,152,82,84,83,79,72,96,91,77,42,36,37,40,25,34,33,30,19,31,12,33,6,113,126,143,67,55,60,152,154,133,84,70,49,42,16,26,7,6,0,0,0,0,0,26,26,26,14,14,14,14,14,14,14,35,4,268,268,372,351,966,593,5749,5825,5297,5630,5175,5584,5943,5842,5332,3164,5583,5468,5193,5229,5175,5175,2883,2111,1860,723,1677,1320,1975,1575,6187,6199,6087,6087,6070,5828,5683,5575,5536,5332,5619,5189,5175,5167,5167,5167,5167,5167,5160,0,5160,1924,5153,5153,2901,1148,760,217,5130,5112,5163,5088,5057,5057,4878,4870,4794,4754,4686,3916,3406,3621,2035,2193,2518,1187,29968,29969,29967,29964,29984,29985,29985,29986,29988,29989]} 1. e4 {[%emt 0:00:03]} c5 {[%emt 0:00:16]} 2. Nf3 {[%emt 0:00:09]} d6 {[%emt 0:00:24]} 3. Bb5+ {[%emt 0:00:04]} Nd7 {[%emt 0:00:49]} 4. a4 {[%emt 0:00:05]} e5 {[%emt 0:12:01] [#]} 5. c3 $146 {[%emt 0:05:39][%cal Bc2c3,Bc3d4][%mdl 32]} ({Predecessor:} 5. O-O Be7 6. Nc3 Ngf6 7. d3 O-O 8. a5 Nb8 9. Ne2 a6 10. Bc4 Nc6 11. Bd2 Bg4 12. Ng3 {½-½ (43) Mammadova,G (2357)-Petrenko,S (2136) Riga 2017}) 5... Ngf6 {[%emt 0:11:03]} 6. d4 {[%emt 0:03:16] B51: Sicilian: Moscow Variation (3 Bb5+) without 3...Bd7.} exd4 {[%emt 0:03:28]} 7. cxd4 {[%emt 0:00:14]} Nxe4 {[%emt 0:00:39]} 8. O-O {[%emt 0:00:14] White is slightly better.} Be7 {[%emt 0:13:34]} 9. Re1 {[%emt 0:06:38]} d5 {[%emt 0:01:24]} 10. dxc5 {[%emt 0:00:55]} Nexc5 {[%emt 0:05:01]} (10... O-O $11 {remains equal.}) 11. Bg5 ({Much less strong is} 11. Qxd5 $6 O-O $14) (11. Nc3 $142 $1 Ne6 12. Nxd5) 11... Ne6 $16 {[%emt 0:03:21]} 12. Bxe7 {[%emt 0:11:30]} Qxe7 {[%emt 0:01:45]} 13. Nc3 {[%emt 0:00:06]} O-O {[%emt 0:02:18][%cal Od5d4]} 14. Nxd5 {[%emt 0:00:04]} Qd8 {[%emt 0:01:38]} 15. Rc1 {[%emt 0:00:19][%cal Oc1c8] Threatens to win with Rxc8! White is much more active. The black rooks are badly placed.} Nf6 {[%emt 0:06:51]} 16. Bc4 {[%emt 0:21:31][%cal Bb5c4,Bc4d5,Bd5e4][%mdl 32]} Nxd5 {[%emt 0:02:07]} 17. Bxd5 {[%emt 0:00:05]} Nf4 {[%emt 0:06:13]} 18. Be4 {[%emt 0:06:15]} Qxd1 {[%emt 0:07:12]} 19. Rcxd1 {[%emt 0:00:08]} Rb8 {[%emt 0:00:37]} 20. Nd4 {[%emt 0:02:32]} a6 {[%emt 0:08:12]} 21. Nb3 {[%emt 0:19:40]} b5 {[%emt 0:04:34]} (21... g6 $11) 22. a5 $1 {[%emt 0:00:44]} b4 {[%emt 0:00:44]} 23. Bc6 {[%emt 0:05:35]} (23. Rd6 $16) 23... Be6 $14 {[%emt 0:03:42]} 24. Nd4 {[%emt 0:03:51] And now g3 would win.} Bc4 {[%emt 0:01:34]} ({Better is} 24... Rfd8 $14) 25. b3 $1 $16 {[%emt 0:01:37]} Bd5 {[%emt 0:00:32]} 26. Bxd5 {[%emt 0:01:16]} (26. g3 $142 Rfc8 27. Bxd5 Nxd5 28. Nf5) 26... Nxd5 {[%emt 0:00:01]} 27. Nc6 {[%emt 0:00:09]} Rbc8 {[%emt 0:01:33]} 28. Rxd5 {[%emt 0:02:40] Strongly threatening Ne7+.} Rxc6 $14 {[%emt 0:00:02][%mdl 4096] Endgame KRR-KRR} 29. Rd4 {[%emt 0:00:20]} Rc5 {[%emt 0:00:37]} 30. Rxb4 {[%emt 0:00:10]} Rxa5 {[%emt 0:00:07]} 31. g3 {[%emt 0:00:47]} g6 {[%emt 0:03:06]} 32. Re7 {[%emt 0:00:05]} h5 {[%emt 0:00:31]} 33. Ra7 {[%emt 0:00:05]} Kg7 {[%emt 0:00:32]} 34. Rb6 {[%emt 0:00:08]} Re8 {[%emt 0:00:29]} 35. Raxa6 {[%emt 0:00:39]} Rxa6 {[%emt 0:00:15]} 36. Rxa6 $11 {[%emt 0:00:02] KR-KR} Rb8 {[%emt 0:00:02] Inhibits Rb6.} 37. Ra3 {[%emt 0:00:08]} Kf6 {[%emt 0:01:13]} 38. h4 {[%emt 0:00:30][%cal Bh2h4,Bh4g5][%mdl 32]} g5 $2 {[%emt 0:00:28][%mdl 8192] Black is now going downhill.} (38... Kf5 $11) 39. Ra6+ $18 Kg7 {[%emt 0:00:27]} 40. hxg5 {[%emt 0:00:57]} Rxb3 $2 {[%emt 0:00:11]} (40... Rb4 41. f4 h4) 41. Rh6 {[%emt 0:30:28]} Rb5 {[%emt 0:30:52]} 42. f4 {[%emt 0:00:09]} Rb2 {[%emt 0:00:32]} 43. Rxh5 {[%emt 0:00:18]} Kg6 {[%emt 0:00:30]} 44. Rh2 {[%emt 0:00:14]} Rb1+ {[%emt 0:00:32]} 45. Kg2 {[%emt 0:00:05]} Kf5 {[%emt 0:00:05]} 46. Rh1 {[%emt 0:07:17]} Rb2+ {[%emt 0:00:06] [#]} 47. Kh3 $1 {[%emt 0:00:11]} Rb8 {[%emt 0:00:03]} 48. Re1 {[%emt 0:00:09]} Rh8+ {[%emt 0:00:16]} 49. Kg2 {[%emt 0:00:14]} Kg4 {[%emt 0:00:19]} 50. Rh1 {[%emt 0:01:45]} Ra8 {[%emt 0:00:01]} 51. Rh4+ {[%emt 0:00:07]} Kf5 {[%emt 0:00:03]} 52. Rh7 {[%emt 0:01:35]} Kg6 {[%emt 0:01:18]} 53. Rh6+ {[%emt 0:00:10]} Kg7 {[%emt 0:00:04]} 54. Kf3 {[%emt 0:00:24]} Ra3+ {[%emt 0:00:41]} 55. Kg4 {[%emt 0:00:06]} Ra4 {[%emt 0:00:27]} 56. Rb6 {[%emt 0:00:19]} Rc4 {[%emt 0:01:18]} 57. Rb8 {[%emt 0:02:27]} Ra4 {[%emt 0:00:26]} 58. Re8 {[%emt 0:00:05]} Rb4 {[%emt 0:01:08]} 59. Ra8 {[%emt 0:01:25]} Rc4 {[%emt 0:00:28]} 60. Kh5 {[%emt 0:00:14] White threatens f5 and mate.} Rc3 {[%emt 0:01:05] [#]} 61. Kh4 $1 {[%emt 0:02:54]} Rc4 {[%emt 0:00:01]} 62. Re8 {[%emt 0:00:41]} Ra4 {[%emt 0:00:16]} 63. Kg4 {[%emt 0:00:03]} Rb4 $1 {[%emt 0:00:03]} 64. Kf5 {[%emt 0:00:13]} (64. Kf3 $142 Rb5 65. g4) 64... Rb5+ {[%emt 0:01:19]} 65. Re5 {[%emt 0:00:05]} Rb3 {[%emt 0:00:26]} 66. g4 {[%emt 0:00:24]} (66. Kg4 $142 Rb4 67. Rc5) 66... Rb4 {[%emt 0:00:07]} 67. Rc5 $2 {[%emt 0:00:10]} (67. Re3 {Black must now prevent Rc3.} Rb6 68. Ke4) 67... Ra4 $2 {[%emt 0:00:09]} (67... Rb3 68. Ra5 Rg3) 68. Ke5 {[%emt 0:00:15]} Rb4 {[%emt 0:00:56]} 69. Rd5 {[%emt 0:00:04]} Ra4 {[%emt 0:00:35]} 70. Rd4 {[%emt 0:00:06]} Ra5+ {[%emt 0:00:22]} 71. Ke4 {[%emt 0:03:20]} Ra1 {[%emt 0:00:08]} 72. f5 {[%emt 0:00:12]} Ra3 {[%emt 0:01:37]} 73. Kd5 {[%emt 0:00:11]} Ra5+ {[%emt 0:00:23]} 74. Kd6 {[%emt 0:00:06]} Ra6+ {[%emt 0:00:21]} 75. Ke7 {[%emt 0:00:12] Hoping for Rd8.} Ra7+ 76. Rd7 {[%emt 0:00:56]} Ra4 {[%emt 0:00:34]} 77. g6 {[%emt 0:00:17] White mates.} Rxg4 {[%emt 0:01:07]} 78. Kd8 {[%emt 0:00:10]} Rxg6 {[%emt 0:00:48]} 79. fxg6 {[%emt 0:00:23]} Kxg6 {[%emt 0:00:04]} 80. Ke7 {[%emt 0:00:40]} f5 {[%emt 0:00:01]} 81. Ke6 {[%emt 0:00:07] Weighted Error Value: White=0.22 (precise) /Black=0.39} 1-0

[Event "Warsaw Chess Open-B 2022"]
[Site "Warsaw"]
[Date "2022.07.20"]
[Round "3.3"]
[White "Radecki, Wojciech"]
[Black "Drozdz, Jakub"]
[Result "1-0"]
[ECO "B24"]
[WhiteElo "1907"]
[BlackElo "1671"]
[Annotator "TA"]
[PlyCount "77"]
[EventDate "2022.07.18"]
[EventType "swiss"]
[EventCountry "POL"]
[SourceTitle "playchess.com"]
[Source "ChessBase"]
[SourceQuality "1"]
[TimeControl "40/5400+30:1800+30"]

{[%evp 14,77,10,8,20,-18,-17,-23,2,-46,-35,-32,-27,-56,-49,-67,-12,-39,0,0,0,-47,-32,-45,-48,-67,-41,-74,-28,-37,-33,-47,-35,-75,-23,-93,0,-77,86,0,42,29,72,0,47,16,24,40,17,34,127,46,170,175,156,163,235,226,423,411,537,537,553,536,29998,29999]} 1. e4 {[%emt 0:00:01]} c5 {[%emt 0:00:04]} 2. Nc3 {[%emt 0:00:09]} Nc6 {[%emt 0:00:07]} 3. g3 {[%emt 0:00:14]} g6 {[%emt 0:00:04]} 4. Bg2 {[%emt 0:00:05]} Bg7 {[%emt 0:00:04]} 5. Nge2 {[%emt 0:00:05]} e6 {[%emt 0:00:14]} 6. O-O {[%emt 0:00:14]} Nge7 {[%emt 0:00:03]} 7. d3 {[%emt 0:00:22]} O-O {[%emt 0:00:15]} 8. Bg5 {[%emt 0:00:24]} h6 {[%emt 0:05:29] B24: Closed Sicilian: 3 g3 sidelines.} 9. Bd2 {[%emt 0:00:18]} d5 {[%emt 0:07:04][%cal Bd7d5,Bd5d4][%mdl 32]} 10. Qc1 {[%emt 0:00:44]} Kh7 {[%emt 0:04:24] [#] Black has an edge.} 11. Nf4 $146 {[%emt 0:02:09]} (11. a3 $11) ({Predecessor:} 11. Nd1 Qb6 12. Rb1 dxe4 13. dxe4 Nd4 14. Re1 Nec6 15. c3 Nxe2+ 16. Rxe2 Qa6 17. Re3 Qxa2 {1-0 (52) De Araujo,L (1906)-Ferreira,M (1927) Sao Paulo 2012}) 11... d4 {[%emt 0:04:50]} 12. Nd1 {[%emt 0:00:27]} e5 {[%emt 0:07:22]} 13. Ne2 {[%emt 0:00:23]} Be6 {[%emt 0:02:54]} 14. b3 {[%emt 0:02:29]} a5 {[%emt 0:03:18]} (14... Qd7 $15) 15. Nb2 {[%emt 0:01:37]} (15. f4 $5 {[%cal Rf4f5]}) 15... b5 {[%emt 0:02:58][%cal Bb7b5,Bb5b4][%mdl 32]} 16. a4 {[%emt 0:01:12]} b4 {[%emt 0:01:57]} 17. h4 {[%emt 0:01:16]} (17. Nc4 $11) 17... h5 {[%emt 0:03:20]} 18. Bg5 {[%emt 0:01:21]} f6 {[%emt 0:02:19]} 19. Bd2 {[%emt 0:00:09]} Ng8 {[%emt 0:02:00]} 20. f4 {[%emt 0:01:13]} Bh6 {[%emt 0:02:36]} (20... Ra7 $17) 21. Kh2 {[%emt 0:01:48]} Ra7 {[%emt 0:02:28]} 22. Rf2 Rg7 23. Qf1 {[%emt 0:06:16]} Rff7 {[%emt 0:04:08]} ({Black should play} 23... exf4 $17 24. Bxf4 (24. Nxf4 Bxf4 25. Bxf4 Nh6 $15) 24... Qe7) 24. Bh3 {[%emt 0:00:22]} (24. Kh1 $11 {keeps the balance.}) 24... Qe8 {[%emt 0:02:33]} (24... Bxh3 $17 25. Qxh3 f5) 25. Qg2 {[%emt 0:03:06]} (25. Ng1 $11) 25... g5 $2 {[%emt 0:02:22]} (25... f5 $17 {keeps the pressure on.}) 26. fxg5 {[%emt 0:10:07]} (26. Bxe6 $16 Qxe6 27. hxg5 fxg5 28. f5) 26... fxg5 {[%emt 0:00:46]} 27. Rxf7 {[%emt 0:00:17]} Bxf7 {[%emt 0:03:51]} 28. Bf5+ {[%emt 0:00:56]} (28. hxg5 $16 Bxg5 29. Bxg5 Rxg5 30. Rf1) 28... Kh8 {[%emt 0:00:44]} (28... Bg6 $11 {might be stronger.}) 29. hxg5 $1 $14 {[%emt 0:01:29]} Bxg5 {[%emt 0:00:09]} 30. Bxg5 {[%emt 0:01:52]} Rxg5 {[%emt 0:00:02]} 31. Ng1 {[%emt 0:00:26]} Nh6 {[%emt 0:02:32] [#]} (31... Rg7 $14) 32. Nf3 {[%emt 0:01:18]} ({White should try} 32. Qd2 $1 $16 {[%cal Rd2g5]} Ng4+ 33. Bxg4 Rxg4 34. Rf1) 32... Ng4+ {[%emt 0:03:02] A mistake that costs the game.} (32... Rg7 $14) 33. Bxg4 $18 {[%emt 0:02:12]} Rxg4 {[%emt 0:00:05]} 34. Rf1 {[%emt 0:00:16]} Qg8 {[%emt 0:01:05]} (34... Be6 {keeps fighting.} 35. Nh4 Qd8) 35. Nh4 {[%emt 0:00:28]} Ne7 $2 {[%emt 0:01:06]} (35... Qg7 36. Qf3 Be6) 36. Qf3 {[%emt 0:00:23]} Be6 {[%emt 0:01:59]} 37. Qf6+ {[%emt 0:00:34]} Rg7 {[%emt 0:07:46]} 38. Qxe5 {[%emt 0:00:55] [#] Threatens to win with Rf6.} Nc6 {[%emt 0:02:26]} 39. Ng6+ {[%emt 0:01:10] Weighted Error Value: White=0.25 (precise) /Black=0.73} 1-0

[Event "Warsaw Chess Open-B 2022"]
[Site "Warsaw"]
[Date "2022.07.20"]
[Round "3.4"]
[White "Wieckowski, Michal"]
[Black "Posuniak, Weronika"]
[Result "0-1"]
[ECO "B01"]
[WhiteElo "1669"]
[BlackElo "1895"]
[Annotator "NA RC COMBH"]
[PlyCount "62"]
[EventDate "2022.07.18"]
[EventType "swiss"]
[EventCountry "POL"]
[SourceTitle "playchess.com"]
[Source "ChessBase"]
[SourceQuality "1"]
[TimeControl "40/5400+30:1800+30"]

1. e4 {[%emt 0:00:01]} d5 {[%emt 0:00:09]} 2. exd5 {[%emt 0:00:05]} Nf6 {[%emt 0:00:12]} 3. d4 {[%emt 0:00:31]} Nxd5 {[%emt 0:00:10]} 4. c4 {[%emt 0:00:26]} Nb6 {[%emt 0:00:17]} 5. Nc3 {[%emt 0:00:39]} g6 {[%emt 0:00:49]} 6. Be3 {[%emt 0:01:32]} Bg7 {[%emt 0:00:23]} 7. h3 {[%emt 0:05:53]} O-O {[%emt 0:00:40]} 8. Nf3 {[%emt 0:00:13]} Nc6 {[%emt 0:02:36]} 9. Qd2 {[%emt 0:02:01]} e5 {[%emt 0:07:11]} 10. d5 {[%emt 0:09:12]} Nd4 {[%emt 0:08:22]} 11. Nxd4 {[%emt 0:04:26]} exd4 12. Bxd4 {[%emt 0:00:51]} Qe7+ {[%emt 0:01:26]} 13. Be3 {[%emt 0:12:21]} Qb4 {[%emt 0:01:21]} 14. Nd1 {[%emt 0:06:16]} Qa4 15. b3 Qa3 16. Rc1 {[%emt 0:08:05]} Rd8 {[%emt 0:13:00]} 17. Be2 {[%emt 0:07:50]} Nd7 {[%emt 0:12:36]} 18. O-O {[%emt 0:01:04]} Nf6 {[%emt 0:01:31]} 19. Nc3 {[%emt 0:02:40]} a6 {[%emt 0:02:18]} 20. Bf3 {[%emt 0:02:04]} Bf5 {[%emt 0:05:16]} 21. Rfd1 {[%emt 0:05:23]} h5 {[%emt 0:01:32]} 22. Bg5 {[%emt 0:07:09]} Re8 {[%emt 0:01:36]} 23. Qf4 {[%emt 0:03:24]} Nh7 {[%emt 0:01:55]} 24. Bh6 {[%emt 0:02:22]} Be5 {[%emt 0:04:08]} 25. Qd2 {[%emt 0:00:14]} Qd6 {[%emt 0:00:13]} 26. Be3 {[%emt 0:00:38]} Qf6 {[%emt 0:01:12]} 27. Re1 {[%emt 0:10:28]} Bxh3 {[%emt 0:02:56]} 28. Bxh5 {[%emt 0:01:30]} gxh5 {[%emt 0:01:53]} 29. gxh3 {[%emt 0:00:00]} Qf3 {[%emt 0:00:16]} 30. Qe2 {[%emt 0:03:15]} Qxh3 {[%emt 0:00:21]} 31. f3 {[%emt 0:00:27]} Kh8 {[%emt 0:00:15]} 0-1

[Event "Warsaw Chess Open-B 2022"]
[Site "Warsaw"]
[Date "2022.07.20"]
[Round "3.5"]
[White "Kaminski, Jan"]
[Black "Szymkiewicz, Witold"]
[Result "1/2-1/2"]
[ECO "B13"]
[WhiteElo "1870"]
[BlackElo "1642"]
[Annotator "NA RC COMBH"]
[PlyCount "110"]
[EventDate "2022.07.18"]
[EventType "swiss"]
[EventCountry "POL"]
[SourceTitle "playchess.com"]
[Source "ChessBase"]
[SourceQuality "1"]
[TimeControl "40/5400+30:1800+30"]

1. e4 {[%emt 0:00:01]} c6 {[%emt 0:00:20]} 2. d4 {[%emt 0:00:05]} d5 {[%emt 0:00:04]} 3. exd5 {[%emt 0:00:12]} cxd5 {[%emt 0:00:08]} 4. Bd3 {[%emt 0:00:08]} Nf6 {[%emt 0:00:09]} 5. c3 {[%emt 0:00:09]} Nc6 {[%emt 0:00:27]} 6. Bf4 {[%emt 0:00:05]} g6 {[%emt 0:05:52]} 7. Nf3 {[%emt 0:01:00]} Bg7 {[%emt 0:00:52]} 8. Nbd2 {[%emt 0:00:14]} O-O {[%emt 0:01:47]} 9. h3 {[%emt 0:00:09]} Re8 {[%emt 0:00:59]} 10. O-O {[%emt 0:05:43]} Nh5 {[%emt 0:04:57]} 11. Bh2 {[%emt 0:01:30]} e5 {[%emt 0:00:47]} 12. dxe5 {[%emt 0:00:58]} Nxe5 {[%emt 0:03:27]} 13. Nxe5 {[%emt 0:00:09]} Bxe5 {[%emt 0:00:05]} 14. Bxe5 {[%emt 0:00:14]} Rxe5 {[%emt 0:00:10]} 15. Nf3 {[%emt 0:02:18]} Re7 {[%emt 0:06:31]} 16. Qd2 {[%emt 0:03:05]} Qc7 {[%emt 0:08:42]} 17. Rfe1 {[%emt 0:04:30]} Be6 {[%emt 0:03:14]} 18. Nd4 {[%emt 0:07:54]} Rae8 19. Re3 {[%emt 0:14:01]} Bd7 {[%emt 0:13:48]} 20. Rxe7 {[%emt 0:03:14]} Rxe7 {[%emt 0:00:09]} 21. Rd1 {[%emt 0:02:27]} a6 {[%emt 0:04:14]} 22. Bf1 {[%emt 0:03:03]} Qf4 {[%emt 0:05:39]} 23. Qxf4 {[%emt 0:08:12]} Nxf4 {[%emt 0:00:13]} 24. Kh2 {[%emt 0:00:42]} Ne6 {[%emt 0:07:19]} 25. Nc2 {[%emt 0:08:46]} Ba4 {[%emt 0:02:34]} 26. b3 {[%emt 0:00:47]} Bc6 {[%emt 0:00:07]} 27. Nb4 {[%emt 0:02:38]} Nc5 {[%emt 0:07:57]} 28. Nxd5 {[%emt 0:04:50]} Bxd5 {[%emt 0:00:06]} 29. Rxd5 {[%emt 0:00:01]} Ne4 {[%emt 0:00:08]} 30. c4 {[%emt 0:01:37]} Nxf2 {[%emt 0:00:09]} 31. c5 {[%emt 0:00:23]} Ne4 {[%emt 0:00:37]} 32. b4 {[%emt 0:01:41]} Rc7 {[%emt 0:08:46]} 33. Bc4 {[%emt 0:02:48]} a5 {[%emt 0:01:44]} 34. a3 {[%emt 0:03:55]} axb4 {[%emt 0:01:02]} 35. axb4 {[%emt 0:00:02]} Kg7 {[%emt 0:01:31]} 36. Rd8 {[%emt 0:01:38]} Nf6 {[%emt 0:00:48]} 37. Be2 {[%emt 0:01:26]} Nd7 {[%emt 0:04:25]} 38. Bf3 {[%emt 0:01:26]} Kf6 {[%emt 0:03:40]} 39. Re8 {[%emt 0:02:42]} Ne5 {[%emt 0:02:29]} 40. Be4 {[%emt 0:00:47]} Nd7 {[%emt 0:00:45]} 41. Bxb7 {[%emt 0:37:50]} Rxb7 {[%emt 0:31:19]} 42. c6 {[%emt 0:00:01]} Rc7 {[%emt 0:00:15]} 43. cxd7 {[%emt 0:04:03]} Rxd7 {[%emt 0:00:06]} 44. Re1 {[%emt 0:00:11]} Rb7 {[%emt 0:00:10]} 45. Rb1 {[%emt 0:00:17]} Ke5 {[%emt 0:00:13]} 46. Kg3 {[%emt 0:00:05]} f5 {[%emt 0:01:13]} 47. b5 {[%emt 0:01:19]} Rb6 {[%emt 0:00:12]} 48. Kf3 {[%emt 0:00:21]} h6 {[%emt 0:00:58]} 49. g3 {[%emt 0:00:35]} g5 {[%emt 0:00:20]} 50. Ke3 {[%emt 0:00:37]} Kd5 {[%emt 0:00:14]} 51. Rf1 {[%emt 0:01:36]} Ke5 {[%emt 0:00:11]} 52. Rb1 {[%emt 0:00:06]} Kd5 {[%emt 0:00:26]} 53. Rf1 {[%emt 0:00:21]} Ke5 {[%emt 0:00:04]} 54. Rb1 {[%emt 0:00:09]} Kd5 {[%emt 0:00:51]} 55. Rf1 Ke5 1/2-1/2

[Event "Warsaw Chess Open-B 2022"]
[Site "Warsaw"]
[Date "2022.07.20"]
[Round "3.6"]
[White "Trybowska, Barbara"]
[Black "Arciszewska, Zuzanna"]
[Result "0-1"]
[ECO "C52"]
[WhiteElo "1828"]
[BlackElo "1574"]
[Annotator "NA RC COMBH"]
[PlyCount "104"]
[EventDate "2022.07.18"]
[EventType "swiss"]
[EventCountry "POL"]
[SourceTitle "playchess.com"]
[Source "ChessBase"]
[SourceQuality "1"]
[TimeControl "40/5400+30:1800+30"]

1. e4 {[%emt 0:00:02]} e5 {[%emt 0:00:09]} 2. Nf3 {[%emt 0:00:09]} Nc6 {[%emt 0:00:11]} 3. Bc4 {[%emt 0:00:07]} Bc5 {[%emt 0:00:18]} 4. b4 {[%emt 0:02:16]} Bxb4 {[%emt 0:01:04]} 5. c3 {[%emt 0:00:06]} Ba5 {[%emt 0:00:31]} 6. d4 {[%emt 0:02:17]} exd4 {[%emt 0:03:07]} 7. O-O {[%emt 0:06:01]} Nf6 {[%emt 0:08:22]} 8. e5 {[%emt 0:10:44]} d5 {[%emt 0:04:53]} 9. exf6 {[%emt 0:18:08]} dxc4 {[%emt 0:00:44]} 10. fxg7 {[%emt 0:00:38]} Rg8 {[%emt 0:00:16]} 11. Re1+ {[%emt 0:02:12]} Be6 12. Ng5 {[%emt 0:14:44]} Qf6 {[%emt 0:09:20]} 13. Nxe6 {[%emt 0:15:01]} fxe6 {[%emt 0:00:11]} 14. Qh5+ {[%emt 0:00:48]} Kd7 {[%emt 0:00:27]} 15. Bh6 {[%emt 0:01:10]} Rad8 {[%emt 0:02:20]} 16. Nd2 {[%emt 0:01:02]} Qf5 {[%emt 0:08:45]} 17. Qxf5 {[%emt 0:10:07]} exf5 {[%emt 0:00:03]} 18. cxd4 {[%emt 0:00:20]} Bxd2 {[%emt 0:07:16]} 19. Bxd2 {[%emt 0:00:07]} Rxg7 {[%emt 0:00:09]} 20. Bc3 {[%emt 0:01:47]} Re7 {[%emt 0:04:08]} 21. Reb1 {[%emt 0:01:34]} b6 {[%emt 0:00:42]} 22. Rb5 {[%emt 0:04:07]} Rf7 {[%emt 0:05:22]} 23. Re1 {[%emt 0:01:26]} a6 {[%emt 0:01:44]} 24. Rb2 {[%emt 0:00:51]} Re7 {[%emt 0:04:00]} 25. Rd1 {[%emt 0:00:52]} Rde8 {[%emt 0:03:57]} 26. Kf1 {[%emt 0:00:50]} Nd8 {[%emt 0:01:43]} 27. d5 {[%emt 0:00:40]} Nb7 {[%emt 0:00:51]} 28. Bf6 {[%emt 0:01:46]} Rf7 {[%emt 0:00:50]} 29. Bd4 {[%emt 0:00:20]} Nd6 {[%emt 0:01:26]} 30. f3 {[%emt 0:01:16]} f4 {[%emt 0:01:56]} 31. Rc2 {[%emt 0:01:10]} b5 {[%emt 0:01:12]} 32. Bc5 {[%emt 0:00:50]} Nb7 {[%emt 0:01:51]} 33. Bf2 {[%emt 0:01:11]} Rf5 {[%emt 0:01:55]} 34. Rcd2 {[%emt 0:01:01]} Kd6 {[%emt 0:01:10]} 35. g4 {[%emt 0:00:57]} fxg3 {[%emt 0:00:10]} 36. Bxg3+ {[%emt 0:00:05]} Kd7 {[%emt 0:01:50]} 37. d6 {[%emt 0:00:49]} Rxf3+ {[%emt 0:05:24]} 38. Kg2 {[%emt 0:00:05]} Rxg3+ {[%emt 0:00:04]} 39. hxg3 {[%emt 0:00:20]} cxd6 {[%emt 0:00:09]} 40. g4 {[%emt 0:00:45]} Kc6 {[%emt 0:00:44]} 41. Kf3 {[%emt 0:30:17]} Re6 {[%emt 0:30:28]} 42. Kf4 {[%emt 0:00:07]} Nc5 {[%emt 0:00:28]} 43. g5 {[%emt 0:00:41]} h6 {[%emt 0:02:33]} 44. gxh6 {[%emt 0:01:19]} Rxh6 {[%emt 0:00:02]} 45. Kg5 {[%emt 0:00:29]} Re6 {[%emt 0:00:02]} 46. Kf5 {[%emt 0:00:10]} Re5+ {[%emt 0:00:09]} 47. Kf4 {[%emt 0:00:15]} Ne6+ {[%emt 0:01:34]} 48. Kf3 {[%emt 0:00:08]} d5 {[%emt 0:00:26]} 49. Rh1 {[%emt 0:00:17]} Kc5 {[%emt 0:00:41]} 50. a3 {[%emt 0:00:18]} c3 {[%emt 0:01:48]} 51. Rc1 {[%emt 0:00:22]} Kc4 {[%emt 0:01:07]} 52. Kf2 {[%emt 0:00:33]} Nc5 {[%emt 0:00:24]} 0-1

[Event "Warsaw Chess Open-B 2022"]
[Site "Warsaw"]
[Date "2022.07.20"]
[Round "3.7"]
[White "Vasynda, Oleksandr"]
[Black "Terkiewicz, Bruno"]
[Result "1/2-1/2"]
[ECO "A45"]
[WhiteElo "1802"]
[BlackElo "1473"]
[Annotator "NA RC COMBH"]
[PlyCount "73"]
[EventDate "2022.07.18"]
[EventType "swiss"]
[EventCountry "POL"]
[SourceTitle "playchess.com"]
[Source "ChessBase"]
[SourceQuality "1"]
[TimeControl "40/5400+30:1800+30"]

1. d4 {[%emt 0:00:10]} Nf6 {[%emt 0:00:02]} 2. Bf4 {[%emt 0:00:11]} d5 {[%emt 0:00:05]} 3. e3 {[%emt 0:00:05]} e6 {[%emt 0:00:35]} 4. Nf3 {[%emt 0:00:08]} c5 {[%emt 0:00:05]} 5. c3 {[%emt 0:00:07]} Bd6 {[%emt 0:00:06]} 6. Bg3 {[%emt 0:00:19]} Qc7 {[%emt 0:00:03]} 7. Ne5 {[%emt 0:00:47]} Nbd7 {[%emt 0:00:45]} 8. f4 {[%emt 0:00:10]} Ne4 {[%emt 0:00:07]} 9. Bd3 {[%emt 0:00:27]} O-O {[%emt 0:00:12]} 10. Bxe4 {[%emt 0:02:27]} dxe4 {[%emt 0:00:15]} 11. Nd2 {[%emt 0:00:12]} f5 {[%emt 0:04:36]} 12. O-O {[%emt 0:04:57]} Nf6 {[%emt 0:11:41]} 13. Ndc4 {[%emt 0:11:43]} Nd5 {[%emt 0:07:04]} 14. Re1 {[%emt 0:05:14]} cxd4 {[%emt 0:14:35]} 15. exd4 {[%emt 0:04:13]} Bd7 16. Qd2 {[%emt 0:03:02]} b5 {[%emt 0:10:47]} 17. Nxd6 {[%emt 0:01:15]} Qxd6 {[%emt 0:01:44]} 18. Bf2 {[%emt 0:01:59]} Rfc8 {[%emt 0:03:56]} 19. Be3 {[%emt 0:01:44]} Rc7 {[%emt 0:03:30]} 20. Rac1 {[%emt 0:01:55]} Rac8 {[%emt 0:00:49]} 21. Qe2 {[%emt 0:04:15]} Be8 {[%emt 0:01:12]} 22. Kh1 {[%emt 0:01:59]} Qa6 {[%emt 0:02:08]} 23. a4 {[%emt 0:02:16]} Qb7 {[%emt 0:06:21]} 24. axb5 {[%emt 0:06:23]} Bxb5 {[%emt 0:01:56]} 25. Qc2 {[%emt 0:02:54]} Bc4 {[%emt 0:02:27]} 26. Ra1 {[%emt 0:00:20]} Bb3 {[%emt 0:02:50]} 27. Qd2 {[%emt 0:01:17]} Qb6 {[%emt 0:06:27]} 28. Ra3 {[%emt 0:02:33]} a5 {[%emt 0:00:28]} 29. Bf2 {[%emt 0:02:09]} a4 {[%emt 0:01:22]} 30. g3 {[%emt 0:03:03]} Qb5 {[%emt 0:00:43]} 31. Qe2 {[%emt 0:03:59]} Qxe2 {[%emt 0:03:07]} 32. Rxe2 {[%emt 0:00:01]} Nb6 {[%emt 0:00:29]} 33. Kg2 {[%emt 0:01:52]} Nc4 {[%emt 0:03:55]} 34. Nxc4 {[%emt 0:00:26]} Rxc4 {[%emt 0:00:17]} 35. Rd2 {[%emt 0:00:45]} Rd8 {[%emt 0:00:08]} 36. Be3 {[%emt 0:00:58]} Kf7 {[%emt 0:00:26]} 37. h3 {[%emt 0:01:28]} 1/2-1/2